fUST/lending_fUST_20260505
["ID","MTS","AMOUNT","RATE_DAILY","PERIOD"]
[421614553,1777963831000,-300.0,0.00011156,2]
[421614555,1777963831000,-841.0,0.00011156,2]
[421614561,1777963831000,-200.07289065,0.000116,2]
[421614574,1777963831000,-442.0,0.00011887,2]
[421614576,1777963831000,-185.0,0.00011887,2]
[421614585,1777963831000,-7930.78742406,0.000121,2]
[421614582,1777963831000,-4129.82174401,0.00012024,2]
[421614580,1777963831000,-537.6845,0.00011993,2]
[421614578,1777963831000,-264.26510823,0.00011993,2]
[421614565,1777963831000,-161.56332863,0.00011768,2]
[421614572,1777963831000,-741.0,0.00011887,2]
[421614586,1777963831000,-8640.58064096,0.000121,2]
[421614569,1777963831000,-1411.0,0.00011887,2]
[421614571,1777963831000,-646.0,0.00011887,2]
[421614780,1777963838000,-1235.40363902,0.000121,2]
[421614782,1777963838000,-8903.38585199,0.000121,2]
[421614787,1777963838000,-414.474,0.00012128,2]
[421614789,1777963838000,-5709.39426697,0.00012213,2]
[421614784,1777963838000,-10099.55436003,0.000121,2]
[421614812,1777963840000,-845.15949572,0.00012213,2]
[421614811,1777963840000,-2410.40144417,0.00012213,2]
[421614821,1777963843000,-13748.83333654,0.00012213,2]
[421614819,1777963843000,-523.95520686,0.00012213,2]
[421614817,1777963843000,-1035.04479314,0.00012213,2]
[421614820,1777963843000,-9476.04479314,0.00012213,2]
[421614838,1777963846000,-6922.62404422,0.00012213,2]
[421614837,1777963846000,-947.36836261,0.00012213,2]
[421614839,1777964075000,3437.856,8e-05,2]
[421614848,1777964412000,5000.0,0.00020822,120]
[421614849,1777964455000,-5000.0,0.00011207,2]
[421614850,1777964473000,-392.0,0.00011207,2]
[421614851,1777964490000,-200.6185652,0.0001132,2]
[421614853,1777964509000,800.0,0.00020821,120]
[421614852,1777964509000,-370.79353885,0.00011485,2]
[421614854,1777964526000,-160.0,0.00011757,2]
[421614855,1777964544000,-160.0,0.00011757,2]
[421614856,1777964562000,-442.0,0.00011856,2]
[421614940,1777964895000,2374.0,8.01e-05,2]
[421614970,1777965032000,-5000.0,0.00011565,2]
[421614973,1777965032000,-363.37766807,0.00011741,2]
[421614983,1777965032000,-500.0,0.00011799,2]
[421614985,1777965032000,-500.0,0.00011799,2]
[421614987,1777965032000,-294.95975948,0.00011799,2]
[421614975,1777965032000,-160.0,0.00011799,2]
[421614991,1777965032000,-367.40449143,0.00011799,2]
[421614979,1777965032000,-500.0,0.00011799,2]
[421614977,1777965032000,-160.0,0.00011799,2]
[421614981,1777965032000,-500.0,0.00011799,2]
[421614993,1777965032000,-265.46652073,0.00011799,2]
[421614995,1777965032000,-234.53347927,0.00011799,2]
[421614997,1777965032000,-120.96652073,0.00011799,2]
[421614989,1777965032000,-500.0,0.00011799,2]
[421615070,1777965038000,-337.306238,0.00011799,2]
[421615060,1777965038000,-379.03347927,0.00011799,2]
[421615062,1777965038000,-500.0,0.00011799,2]
[421615065,1777965038000,-500.0,0.00011799,2]
[421615064,1777965038000,-205.45591048,0.00011799,2]
[421615066,1777965038000,-510.44683217,0.00011799,2]
[421615069,1777965038000,-425.99804581,0.00011799,2]
[421615063,1777965038000,-500.0,0.00011799,2]
[421615061,1777965038000,-500.0,0.00011799,2]
[421615067,1777965038000,-228.99260786,0.00011799,2]
[421615072,1777965038000,-34306.52108212,0.000118,2]
[421615075,1777965038000,-13607.10615054,0.000118,2]
[421615071,1777965038000,-600.0,0.00011799,2]
[421615073,1777965038000,-4684.96900967,0.000118,2]
[421615074,1777965038000,-39118.88217482,0.000118,2]
[421615068,1777965038000,-154.04354038,0.00011799,2]
[421615090,1777965040000,-340.44051521,0.000118,2]
[421615122,1777965049000,-6019.39752834,0.000118,2]
[421615121,1777965049000,-82587.39174072,0.000118,2]
[421615120,1777965049000,-5000.0,0.00011682,2]
[421615123,1777965060000,151.0,4e-06,14]
[421615131,1777965616000,174.5172131,5.45e-05,2]
[421615132,1777965798000,3514.00171182,8.01e-05,2]
[421615319,1777966241000,-2150.05688293,0.00010943,2]
[421615318,1777966241000,-2849.94311707,0.00010943,2]
[421615321,1777966241000,-369.21159678,0.00011289,2]
[421615329,1777966241000,-160.0,0.00011755,2]
[421615331,1777966241000,-7.36511309,0.0001184,2]
[421615330,1777966241000,-160.0,0.00011755,2]
[421615323,1777966241000,-159.0,0.000115,2]
[421615326,1777966241000,-200.02261659,0.000116,2]
[421615327,1777966241000,-8093.85820474,0.00011643,2]
[421615328,1777966241000,-151.3971218,0.00011713,2]
[421615322,1777966241000,-159.0,0.000115,2]
[421615320,1777966241000,-392.0,0.00011054,2]
[421615333,1777966241000,-10079.82275578,0.00011843,2]
[421615332,1777966241000,-995.24488691,0.0001184,2]
[421615335,1777966241000,-160.0,0.00011864,2]
[421615336,1777966241000,-1046.315342,0.00011897,2]
[421615334,1777966241000,-161.56332863,0.00011864,2]
[421615340,1777966241000,-185.0,0.00011921,2]
[421615338,1777966241000,-442.0,0.00011921,2]
[421615337,1777966241000,-155.26628544,0.000119,2]
[421615341,1777966241000,-4502.21666077,0.00011943,2]
[421615339,1777966241000,-741.0,0.00011921,2]
[421615342,1777966241000,-2653.23112551,0.00011943,2]
[421615325,1777966241000,-4213.23137895,0.00011543,2]
[421615455,1777966247000,-442.98,0.00011943,2]
[421615479,1777966929000,202.86,0.00020822,120]
[421615480,1777967066000,20015.27,0.0002082,120]
[421615687,1777967434000,-586.94081868,9.679e-05,2]
[421615686,1777967434000,-1817.25880299,9.679e-05,2]
[421615685,1777967434000,-346.99641921,9.679e-05,2]
[421615715,1777967438000,-500.0,0.00011641,2]
[421615708,1777967438000,-500.0,0.00011641,2]
[421615714,1777967438000,-500.0,0.00011641,2]
[421615713,1777967438000,-500.0,0.00011641,2]
[421615711,1777967438000,-500.0,0.00011641,2]
[421615712,1777967438000,-500.0,0.00011641,2]
[421615710,1777967438000,-293.76309782,0.00011641,2]
[421615709,1777967438000,-500.0,0.00011641,2]
[421615700,1777967438000,-391.17047335,9.777e-05,2]
[421615706,1777967438000,-500.0,0.00011641,2]
[421615705,1777967438000,-275.42151042,0.0001164,2]
[421615703,1777967438000,-601.0,0.0001164,2]
[421615704,1777967438000,-300.0,0.0001164,2]
[421615701,1777967438000,-1056.72117886,0.0001,2]
[421615702,1777967438000,-331.579,0.00011507,2]
[421615699,1777967438000,-2248.80395912,9.679e-05,2]
[421615716,1777967438000,-437.68631796,0.00011641,2]
[421615707,1777967438000,-500.0,0.00011641,2]
[421615717,1777967438000,-500.0,0.00011641,2]
[421615737,1777967438000,-500.0,0.00011641,2]
[421615719,1777967438000,-500.0,0.00011641,2]
[421615718,1777967438000,-523.76117426,0.00011641,2]
[421615736,1777967438000,-500.0,0.00011641,2]
[421615734,1777967438000,-436.0709794,0.00011641,2]
[421615732,1777967438000,-500.0,0.00011641,2]
[421615733,1777967438000,-360.73092881,0.00011641,2]
[421615729,1777967438000,-500.0,0.00011641,2]
[421615731,1777967438000,-500.0,0.00011641,2]
[421615730,1777967438000,-500.0,0.00011641,2]
[421615735,1777967438000,-500.0,0.00011641,2]
[421615727,1777967438000,-500.0,0.00011641,2]
[421615724,1777967438000,-500.0,0.00011641,2]
[421615726,1777967438000,-500.0,0.00011641,2]
[421615725,1777967438000,-500.0,0.00011641,2]
[421615723,1777967438000,-500.0,0.00011641,2]
[421615721,1777967438000,-500.0,0.00011641,2]
[421615722,1777967438000,-500.0,0.00011641,2]
[421615728,1777967438000,-500.0,0.00011641,2]
[421615720,1777967438000,-500.0,0.00011641,2]
[421615779,1777967439000,-2612.3582,0.00012328,2]
[421615780,1777967439000,-1513.92,0.00012328,2]
[421615778,1777967439000,-2612.3582,0.00012328,2]
[421615777,1777967439000,-6872.43355138,0.00012328,2]
[421615776,1777967439000,-155.0,0.00012327,2]
[421615772,1777967439000,-18381.17425663,0.00012213,2]
[421615773,1777967439000,-10000.0,0.00012213,2]
[421615771,1777967439000,-25543.60193084,0.0001211,2]
[421615774,1777967439000,-2027.63363337,0.00012228,2]
[421615738,1777967439000,-500.0,0.00011641,2]
[421615781,1777967439000,-500.0,0.00012328,2]
[421615775,1777967439000,-557.5788265,0.00012283,2]
[421615783,1777967439000,-718.2,0.00012328,2]
[421615793,1777967439000,-500.0,0.00012328,2]
[421615782,1777967439000,-500.0,0.00012328,2]
[421615785,1777967439000,-500.0,0.00012328,2]
[421615790,1777967439000,-500.0,0.00012328,2]
[421615787,1777967439000,-500.0,0.00012328,2]
[421615788,1777967439000,-500.0,0.00012328,2]
[421615786,1777967439000,-670.7,0.00012328,2]
[421615789,1777967439000,-371.73486445,0.00012328,2]
[421615769,1777967439000,-500.0,0.0001199,2]
[421615791,1777967439000,-500.0,0.00012328,2]
[421615792,1777967439000,-317.50228618,0.00012328,2]
[421615794,1777967439000,-500.0,0.00012328,2]
[421615795,1777967439000,-630.4,0.00012328,2]
[421615797,1777967439000,-500.0,0.00012328,2]
[421615798,1777967439000,-547.28724985,0.00012328,2]
[421615784,1777967439000,-500.0,0.00012328,2]
[421615770,1777967439000,-50000.0,0.00012,2]
[421615758,1777967439000,-160.0,0.00011753,2]
[421615768,1777967439000,-2709.65066111,0.00011943,2]
[421615739,1777967439000,-287.23853144,0.00011641,2]
[421615741,1777967439000,-500.0,0.00011641,2]
[421615744,1777967439000,-500.0,0.00011641,2]
[421615740,1777967439000,-500.0,0.00011641,2]
[421615742,1777967439000,-500.0,0.00011641,2]
[421615743,1777967439000,-500.0,0.00011641,2]
[421615746,1777967439000,-500.0,0.00011641,2]
[421615745,1777967439000,-500.0,0.00011641,2]
[421615747,1777967439000,-500.0,0.00011641,2]
[421615749,1777967439000,-439.18795945,0.00011641,2]
[421615748,1777967439000,-500.0,0.00011641,2]
[421615750,1777967439000,-500.0,0.00011641,2]
[421615752,1777967439000,-500.0,0.00011641,2]
[421615767,1777967439000,-203.965,0.00011827,2]
[421615751,1777967439000,-500.0,0.00011641,2]
[421615755,1777967439000,-1781.21216269,0.00011653,2]
[421615754,1777967439000,-955373.62338256,0.00011642,2]
[421615757,1777967439000,-160.0,0.00011753,2]
[421615756,1777967439000,-537.6845,0.00011735,2]
[421615760,1777967439000,-161.56332863,0.00011753,2]
[421615761,1777967439000,-427.0275313,0.0001177,2]
[421615763,1777967439000,-784.7365065,0.0001177,2]
[421615759,1777967439000,-160.0,0.00011753,2]
[421615762,1777967439000,-29298.3364249,0.0001177,2]
[421615765,1777967439000,-1411.0,0.00011827,2]
[421615764,1777967439000,-461.58115855,0.00011777,2]
[421615796,1777967439000,-578.99,0.00012328,2]
[421615766,1777967439000,-2214.0,0.00011827,2]
[421615753,1777967439000,-134283.94231697,0.00011642,2]
[421615801,1777967439000,-500.0,0.00012328,2]
[421615828,1777967439000,-501.49,0.00012328,2]
[421615799,1777967439000,-732.04,0.00012328,2]
[421615838,1777967439000,-500.0,0.00012328,2]
[421615844,1777967439000,-215.24711213,0.00012328,2]
[421615840,1777967439000,-598.49,0.00012328,2]
[421615839,1777967439000,-500.0,0.00012328,2]
[421615841,1777967439000,-671.67,0.00012328,2]
[421615837,1777967439000,-500.0,0.00012328,2]
[421615843,1777967439000,-500.0,0.00012328,2]
[421615842,1777967439000,-500.0,0.00012328,2]
[421615846,1777967439000,-500.0,0.00012328,2]
[421615845,1777967439000,-500.0,0.00012328,2]
[421615847,1777967439000,-500.0,0.00012328,2]
[421615848,1777967439000,-500.0,0.00012328,2]
[421615849,1777967439000,-500.0,0.00012328,2]
[421615835,1777967439000,-500.0,0.00012328,2]
[421615850,1777967439000,-500.0,0.00012328,2]
[421615855,1777967439000,-500.0,0.00012328,2]
[421615853,1777967439000,-500.0,0.00012328,2]
[421615851,1777967439000,-1349.71,0.00012328,2]
[421615854,1777967439000,-960.06,0.00012328,2]
[421615856,1777967439000,-500.0,0.00012328,2]
[421615857,1777967439000,-500.0,0.00012328,2]
[421615858,1777967439000,-2691.44,0.00012328,2]
[421615860,1777967439000,-503.41194362,0.00012328,2]
[421615859,1777967439000,-500.0,0.00012328,2]
[421615863,1777967439000,-500.0,0.00012328,2]
[421615861,1777967439000,-719.88,0.00012328,2]
[421615862,1777967439000,-266.68192432,0.00012328,2]
[421615804,1777967439000,-500.0,0.00012328,2]
[421615852,1777967439000,-500.0,0.00012328,2]
[421615833,1777967439000,-500.0,0.00012328,2]
[421615836,1777967439000,-500.0,0.00012328,2]
[421615832,1777967439000,-584.71,0.00012328,2]
[421615800,1777967439000,-1968.43,0.00012328,2]
[421615803,1777967439000,-676.5,0.00012328,2]
[421615802,1777967439000,-621.41,0.00012328,2]
[421615806,1777967439000,-620.04,0.00012328,2]
[421615805,1777967439000,-523.45,0.00012328,2]
[421615808,1777967439000,-804.56477144,0.00012328,2]
[421615807,1777967439000,-700.87,0.00012328,2]
[421615809,1777967439000,-500.0,0.00012328,2]
[421615811,1777967439000,-554.6450126,0.00012328,2]
[421615810,1777967439000,-500.0,0.00012328,2]
[421615814,1777967439000,-1807.91,0.00012328,2]
[421615812,1777967439000,-500.0,0.00012328,2]
[421615816,1777967439000,-500.0,0.00012328,2]
[421615815,1777967439000,-500.0,0.00012328,2]
[421615834,1777967439000,-500.0,0.00012328,2]
[421615817,1777967439000,-500.0,0.00012328,2]
[421615827,1777967439000,-500.0,0.00012328,2]
[421615831,1777967439000,-2206.93,0.00012328,2]
[421615830,1777967439000,-606.09,0.00012328,2]
[421615829,1777967439000,-801.77,0.00012328,2]
[421615813,1777967439000,-500.0,0.00012328,2]
[421615824,1777967439000,-1023.01,0.00012328,2]
[421615826,1777967439000,-500.0,0.00012328,2]
[421615823,1777967439000,-500.0,0.00012328,2]
[421615821,1777967439000,-500.0,0.00012328,2]
[421615822,1777967439000,-500.0,0.00012328,2]
[421615820,1777967439000,-828.8,0.00012328,2]
[421615818,1777967439000,-966.94,0.00012328,2]
[421615819,1777967439000,-500.0,0.00012328,2]
[421615825,1777967439000,-527.66,0.00012328,2]
[421615917,1777967440000,-612.92,0.00012328,2]
[421615906,1777967440000,-1998.8,0.00012328,2]
[421615904,1777967440000,-500.0,0.00012328,2]
[421615905,1777967440000,-587.21,0.00012328,2]
[421615899,1777967440000,-500.0,0.00012328,2]
[421615902,1777967440000,-1573.6,0.00012328,2]
[421615901,1777967440000,-500.0,0.00012328,2]
[421615896,1777967440000,-4186.27,0.00012328,2]
[421615900,1777967440000,-500.0,0.00012328,2]
[421615897,1777967440000,-500.0,0.00012328,2]
[421615909,1777967440000,-500.0,0.00012328,2]
[421615903,1777967440000,-1167.5,0.00012328,2]
[421615908,1777967440000,-500.0,0.00012328,2]
[421615918,1777967440000,-500.0,0.00012328,2]
[421615911,1777967440000,-1723.32,0.00012328,2]
[421615914,1777967440000,-500.0,0.00012328,2]
[421615912,1777967440000,-500.0,0.00012328,2]
[421615916,1777967440000,-662.44,0.00012328,2]
[421615920,1777967440000,-500.0,0.00012328,2]
[421615921,1777967440000,-574.8,0.00012328,2]
[421615919,1777967440000,-575.07,0.00012328,2]
[421615922,1777967440000,-500.0,0.00012328,2]
[421615928,1777967440000,-1702.08,0.00012328,2]
[421615925,1777967440000,-650.88,0.00012328,2]
[421615924,1777967440000,-500.0,0.00012328,2]
[421615923,1777967440000,-949.63,0.00012328,2]
[421615898,1777967440000,-500.0,0.00012328,2]
[421615910,1777967440000,-562.88,0.00012328,2]
[421615894,1777967440000,-500.0,0.00012328,2]
[421615879,1777967440000,-500.0,0.00012328,2]
[421615893,1777967440000,-1119.23,0.00012328,2]
[421615864,1777967440000,-500.0,0.00012328,2]
[421615866,1777967440000,-923.81,0.00012328,2]
[421615865,1777967440000,-500.0,0.00012328,2]
[421615867,1777967440000,-676.57,0.00012328,2]
[421615871,1777967440000,-500.0,0.00012328,2]
[421615868,1777967440000,-817.98,0.00012328,2]
[421615869,1777967440000,-1514.52,0.00012328,2]
[421615870,1777967440000,-500.0,0.00012328,2]
[421615872,1777967440000,-500.0,0.00012328,2]
[421615876,1777967440000,-500.0,0.00012328,2]
[421615877,1777967440000,-500.0,0.00012328,2]
[421615875,1777967440000,-898.89,0.00012328,2]
[421615874,1777967440000,-504.81,0.00012328,2]
[421615878,1777967440000,-500.0,0.00012328,2]
[421615926,1777967440000,-889.27,0.00012328,2]
[421615880,1777967440000,-648.9,0.00012328,2]
[421615883,1777967440000,-3980.82,0.00012328,2]
[421615881,1777967440000,-500.0,0.00012328,2]
[421615884,1777967440000,-500.0,0.00012328,2]
[421615882,1777967440000,-500.0,0.00012328,2]
[421615885,1777967440000,-2211.24,0.00012328,2]
[421615887,1777967440000,-500.0,0.00012328,2]
[421615886,1777967440000,-500.0,0.00012328,2]
[421615888,1777967440000,-500.0,0.00012328,2]
[421615891,1777967440000,-970.02,0.00012328,2]
[421615890,1777967440000,-936.87,0.00012328,2]
[421615889,1777967440000,-500.0,0.00012328,2]
[421615895,1777967440000,-500.0,0.00012328,2]
[421615927,1777967440000,-500.0,0.00012328,2]
[421615873,1777967440000,-779.17,0.00012328,2]
[421615930,1777967440000,-2401.78,0.00012328,2]
[421615969,1777967440000,-500.0,0.00012328,2]
[421615962,1777967440000,-500.0,0.00012328,2]
[421615965,1777967440000,-500.0,0.00012328,2]
[421615967,1777967440000,-500.0,0.00012328,2]
[421615964,1777967440000,-500.0,0.00012328,2]
[421615968,1777967440000,-500.0,0.00012328,2]
[421615966,1777967440000,-500.0,0.00012328,2]
[421615970,1777967440000,-1316.8,0.00012328,2]
[421615973,1777967440000,-530.0,0.00012328,2]
[421615972,1777967440000,-511.04,0.00012328,2]
[421615974,1777967440000,-500.0,0.00012328,2]
[421615976,1777967440000,-500.0,0.00012328,2]
[421615975,1777967440000,-799.66,0.00012328,2]
[421615977,1777967440000,-2027.66,0.00012328,2]
[421615978,1777967440000,-5585.22,0.00012328,2]
[421615980,1777967440000,-500.0,0.00012328,2]
[421615979,1777967440000,-500.0,0.00012328,2]
[421615982,1777967440000,-500.0,0.00012328,2]
[421615981,1777967440000,-500.0,0.00012328,2]
[421615983,1777967440000,-3143.92,0.00012328,2]
[421615986,1777967440000,-500.0,0.00012328,2]
[421615987,1777967440000,-6013.5,0.00012328,2]
[421615985,1777967440000,-500.0,0.00012328,2]
[421615984,1777967440000,-9764.41,0.00012328,2]
[421615988,1777967440000,-500.0,0.00012328,2]
[421615989,1777967440000,-1298.2,0.00012328,2]
[421615929,1777967440000,-500.0,0.00012328,2]
[421615963,1777967440000,-500.0,0.00012328,2]
[421615960,1777967440000,-1634.02,0.00012328,2]
[421615971,1777967440000,-500.0,0.00012328,2]
[421615959,1777967440000,-500.0,0.00012328,2]
[421615931,1777967440000,-1376.05,0.00012328,2]
[421615932,1777967440000,-763.42,0.00012328,2]
[421615933,1777967440000,-3997.49,0.00012328,2]
[421615958,1777967440000,-500.0,0.00012328,2]
[421615935,1777967440000,-637.89,0.00012328,2]
[421615936,1777967440000,-500.0,0.00012328,2]
[421615937,1777967440000,-500.0,0.00012328,2]
[421615938,1777967440000,-697.85,0.00012328,2]
[421615941,1777967440000,-500.0,0.00012328,2]
[421615939,1777967440000,-500.0,0.00012328,2]
[421615940,1777967440000,-500.0,0.00012328,2]
[421615943,1777967440000,-500.0,0.00012328,2]
[421615942,1777967440000,-781.85,0.00012328,2]
[421615944,1777967440000,-500.0,0.00012328,2]
[421615934,1777967440000,-500.0,0.00012328,2]
[421615946,1777967440000,-500.0,0.00012328,2]
[421615948,1777967440000,-618.14775829,0.00012328,2]
[421615961,1777967440000,-500.0,0.00012328,2]
[421615955,1777967440000,-500.0,0.00012328,2]
[421615956,1777967440000,-926.95,0.00012328,2]
[421615953,1777967440000,-500.0,0.00012328,2]
[421615952,1777967440000,-500.0,0.00012328,2]
[421615957,1777967440000,-500.0,0.00012328,2]
[421615951,1777967440000,-606.1,0.00012328,2]
[421615950,1777967440000,-990.09,0.00012328,2]
[421615949,1777967440000,-3992.63,0.00012328,2]
[421615947,1777967440000,-1382.59,0.00012328,2]
[421615954,1777967440000,-1315.76,0.00012328,2]
[421615945,1777967440000,-500.0,0.00012328,2]
[421616006,1777967441000,-500.0,0.00012328,2]
[421616005,1777967441000,-555.91141745,0.00012328,2]
[421616007,1777967441000,-500.0,0.00012328,2]
[421616008,1777967441000,-500.0,0.00012328,2]
[421616011,1777967441000,-1150.26,0.00012328,2]
[421616010,1777967441000,-1166.0,0.00012328,2]
[421616012,1777967441000,-500.0,0.00012328,2]
[421616003,1777967441000,-500.0,0.00012328,2]
[421616013,1777967441000,-500.0,0.00012328,2]
[421616009,1777967441000,-4151.1,0.00012328,2]
[421616004,1777967441000,-581.38,0.00012328,2]
[421615995,1777967441000,-500.0,0.00012328,2]
[421616001,1777967441000,-7159.36,0.00012328,2]
[421615999,1777967441000,-500.0,0.00012328,2]
[421616000,1777967441000,-500.0,0.00012328,2]
[421615997,1777967441000,-3368.65,0.00012328,2]
[421615998,1777967441000,-841.88,0.00012328,2]
[421615996,1777967441000,-500.0,0.00012328,2]
[421615994,1777967441000,-500.0,0.00012328,2]
[421615992,1777967441000,-500.0,0.00012328,2]
[421615993,1777967441000,-3478.84,0.00012328,2]
[421616014,1777967441000,-500.0,0.00012328,2]
[421616002,1777967441000,-676.75,0.00012328,2]
[421616015,1777967441000,-910.32,0.00012328,2]
[421616033,1777967441000,-500.0,0.00012328,2]
[421616018,1777967441000,-500.0,0.00012328,2]
[421616041,1777967441000,-1178.98896994,0.00012328,2]
[421616040,1777967441000,-2094.22292233,0.00012328,2]
[421616039,1777967441000,-500.0,0.00012328,2]
[421616036,1777967441000,-10093.78,0.00012328,2]
[421616038,1777967441000,-4582.01,0.00012328,2]
[421616037,1777967441000,-588.68,0.00012328,2]
[421616034,1777967441000,-500.0,0.00012328,2]
[421616016,1777967441000,-3405.86,0.00012328,2]
[421616035,1777967441000,-2528.37,0.00012328,2]
[421616031,1777967441000,-3408.93,0.00012328,2]
[421616029,1777967441000,-3137.2,0.00012328,2]
[421616032,1777967441000,-839.28,0.00012328,2]
[421616028,1777967441000,-500.0,0.00012328,2]
[421616017,1777967441000,-791.54,0.00012328,2]
[421616019,1777967441000,-500.0,0.00012328,2]
[421616021,1777967441000,-500.0,0.00012328,2]
[421616030,1777967441000,-500.0,0.00012328,2]
[421616023,1777967441000,-500.0,0.00012328,2]
[421616020,1777967441000,-500.0,0.00012328,2]
[421616025,1777967441000,-500.0,0.00012328,2]
[421616024,1777967441000,-500.0,0.00012328,2]
[421616026,1777967441000,-1158.47,0.00012328,2]
[421616027,1777967441000,-928.72,0.00012328,2]
[421616022,1777967441000,-7508.92,0.00012328,2]
[421616066,1777967444000,-420.8168224,0.00012328,2]
[421616074,1777967447000,-500.0,0.00012328,2]
[421616073,1777967447000,-500.0,0.00012328,2]
[421616072,1777967447000,-491.99128533,0.00012328,2]
[421616075,1777967447000,-813.84,0.00012328,2]
[421616076,1777967447000,-1412.67,0.00012328,2]
[421616080,1777967447000,-500.0,0.00012328,2]
[421616077,1777967447000,-500.0,0.00012328,2]
[421616081,1777967447000,-1322.9849917,0.00012328,2]
[421616079,1777967447000,-3300.85,0.00012328,2]
[421616082,1777967447000,-1223.92988995,0.00012328,2]
[421616078,1777967447000,-500.0,0.00012328,2]
[421616091,1777967569000,429.9826,0.00020548,120]
[421616096,1777968031000,200.0,0.00020288,120]
[421616101,1777968074000,-2279.02172515,0.00010957,2]
[421616102,1777968090000,200.0,0.0001967,120]
[421616103,1777968270000,200.0,0.00020253,120]
[421616104,1777968331000,200.0,0.00019624,120]
[421616105,1777968390000,200.0,0.00020453,120]
[421616112,1777968512000,161.818701,5.321e-05,2]
[421616113,1777968512000,161.818701,7.981e-05,2]
[421616185,1777968631000,200.0,0.00018489,120]
[421616233,1777968632000,-5000.0,0.0001042,2]
[421616229,1777968632000,-5000.0,0.00010316,2]
[421616231,1777968632000,-529.0,0.00010316,2]
[421616235,1777968632000,-393.68983547,0.00010578,2]
[421616238,1777968632000,-300.0,0.00010845,2]
[421616240,1777968632000,-300.0,0.00010845,2]
[421616244,1777968632000,-1200.0,0.00010845,2]
[421616242,1777968632000,-300.0,0.00010845,2]
[421616246,1777968632000,-300.0,0.00010845,2]
[421616248,1777968632000,-500.0,0.0001118,2]
[421616237,1777968632000,-161.818701,0.00010642,2]
[421616251,1777968632000,-160.0,0.00011756,2]
[421616249,1777968632000,-160.0,0.00011756,2]
[421616255,1777968632000,-160.0,0.00011756,2]
[421616260,1777968632000,-674.74878223,0.00011809,2]
[421616253,1777968632000,-161.56332863,0.00011756,2]
[421616263,1777968632000,-442.0,0.00011809,2]
[421616265,1777968632000,-151.5,0.00011852,2]
[421616262,1777968632000,-185.0,0.00011809,2]
[421616267,1777968632000,-151.5,0.00011852,2]
[421616272,1777968632000,-203.65342287,0.00011852,2]
[421616275,1777968632000,-767.57252981,0.00011866,2]
[421616270,1777968632000,-151.5,0.00011852,2]
[421616257,1777968632000,-66.25121777,0.00011809,2]
[421616351,1777968639000,-182.0,0.00011919,2]
[421616347,1777968639000,-5000.0,0.00010213,2]
[421616350,1777968639000,-333.0,0.00011919,2]
[421616349,1777968639000,-2214.0,0.00011866,2]
[421616354,1777968639000,-501.9808976,0.00012,2]
[421616353,1777968639000,-1680.0,0.0001193,2]
[421616352,1777968639000,-420.0,0.00011919,2]
[421616355,1777968639000,-3564.95304274,0.00012027,2]
[421616348,1777968639000,-643.42747019,0.00011866,2]
[421616434,1777968644000,-198.58205905,0.00012126,2]
[421616436,1777968644000,-500.0,0.00012126,2]
[421616433,1777968644000,-595.63676987,0.00012126,2]